bitfinex-derivatives/quotes_ETHF0:USTF0_20250530
["timestamp","ask_amount","ask_price","bid_price","bid_amount"]
[1748627160849,0.78485,2548.1,2548.0,0.78483]
[1748627161048,0.6715,2548.2,2547.9,3.2078]
[1748627161244,1.3584,2548.3,2548.0,4.09]
[1748627161448,1.3584,2548.8,2548.2,3.2078]
[1748627161755,1.3584,2548.8,2548.6,0.78465]
[1748627161944,1.3584,2548.8,2548.7,0.78464]
[1748627162150,0.78459,2548.9,2548.8,0.7846]
[1748627162451,0.78461,2548.8,2548.7,1.2304]
[1748627163251,1.2949,2549.1,2548.7,1.2304]
[1748627163557,3.2078,2550.0,2548.8,5.16932]
[1748627163854,1.2949,2549.8,2549.3,3.2078]
[1748627164051,0.78439,2549.6,2549.4,6.10381]
[1748627164354,0.7844,2549.5,2549.4,5.3194]
[1748627164758,0.7844,2549.5,2549.4,4.089]
[1748627164948,0.78439,2549.6,2549.4,4.87343]
[1748627165149,1.2949,2549.8,2549.4,4.089]
[1748627165354,0.7844,2549.5,2549.4,6.16101]
[1748627165853,0.7844,2549.5,2549.4,5.3766]
[1748627166045,1.2949,2549.8,2549.3,3.2078]
[1748627166046,0.78443,2549.4,2549.3,3.2078]
[1748627166247,0.78443,2549.4,2549.3,7.2968]
[1748627168346,1.96114,2549.4,2549.1,4.088]
[1748627168545,0.78455,2549.0,2548.9,3.2078]
[1748627168751,0.78455,2549.0,2548.9,4.088]
[1748627169543,0.78454,2549.1,2548.9,4.088]
[1748627169746,5.16863,2549.8,2548.9,7.2958]
[1748627169946,1.3304,2549.7,2549.3,0.78443]
[1748627170154,0.78443,2549.4,2549.3,5.4013]
[1748627170552,0.78442,2549.5,2549.3,5.4013]
[1748627170850,0.78443,2549.4,2549.3,6.18574]
[1748627171050,0.78442,2549.5,2549.4,0.78442]
[1748627171353,2.11475,2549.7,2549.6,0.78436]
[1748627171659,0.78436,2549.6,2549.5,3.99218]
[1748627172353,0.78436,2549.6,2549.5,3.2078]
[1748627172647,1.3304,2549.7,2549.3,5.4013]
[1748627172848,0.78443,2549.4,2549.3,1.3133]
[1748627173052,3.29128,2549.7,2549.3,4.087]
[1748627173252,0.78446,2549.4,2549.3,4.87145]
[1748627173448,0.78446,2549.3,2549.2,3.2078]
[1748627173655,0.78446,2549.3,2549.2,4.087]
[1748627174152,0.78452,2549.1,2549.0,2.08975]
[1748627174352,0.78452,2549.1,2549.0,6.17675]
[1748627174548,0.78452,2549.1,2549.0,5.3922]
[1748627174748,0.78458,2548.9,2548.8,3.2078]
[1748627174948,0.78458,2548.9,2548.8,4.087]
[1748627175152,0.78458,2548.9,2548.8,4.87161]
[1748627176455,1.3484,2549.0,2548.9,0.78458]
[1748627176651,0.7845,2549.3,2549.2,0.78447]
[1748627177050,0.78452,2549.2,2549.1,0.78449]
[1748627177253,0.78452,2549.2,2549.1,4.87149]
[1748627177456,3.30924,2549.7,2549.1,4.087]
[1748627177653,0.78446,2549.4,2549.3,0.78443]
[1748627178350,0.78441,2549.6,2549.5,0.78437]
[1748627178555,2.13276,2549.7,2549.6,0.78436]
[1748627178858,0.78436,2549.6,2549.5,4.086]
[1748627179052,1.96114,2549.4,2549.3,4.086]
[1748627179255,0.78456,2549.1,2549.0,0.78453]
[1748627179553,0.78456,2549.1,2549.0,4.87053]
[1748627179960,0.78456,2549.1,2549.0,4.086]
[1748627180859,0.78456,2549.1,2548.6,39.57688281]
[1748627180860,0.78464,2548.7,2548.6,39.57688281]
[1748627181058,0.78464,2548.7,2548.6,43.66188281]
[1748627181254,0.78464,2548.7,2548.6,4.09088281]
[1748627182156,0.06993857,2548.9,2548.6,4.09088281]
[1748627182356,0.06993857,2548.9,2548.6,5.39298281]
[1748627182561,0.78464,2548.7,2548.6,6.17764281]
[1748627182761,0.78464,2548.7,2548.6,4.87554281]
[1748627183059,0.78464,2548.7,2548.6,4.09088281]
[1748627185365,3.99244,2548.7,2548.6,4.09088281]
[1748627186068,3.99244,2548.7,2548.6,0.00588281]
[1748627186363,0.78484,2548.1,2548.0,4.086]
[1748627187469,0.78483,2548.1,2548.0,4.87086]
[1748627187668,3.87548281,2548.3,2548.2,0.7848]
[1748627187860,0.00588281,2548.3,2548.2,0.7848]
[1748627188058,1.9215,2549.1,2548.8,0.78461]
[1748627188268,1.9215,2549.1,2548.8,4.87061]
[1748627188565,0.85451857,2548.9,2548.8,4.87061]
[1748627189070,0.78467,2548.6,2548.5,3.2078]
[1748627189365,0.78466,2548.7,2548.6,0.78464]
[1748627189868,0.78467,2548.6,2548.5,8.07849]
[1748627190465,0.78467,2548.7,2548.6,0.78464]
[1748627191072,0.78467,2548.6,2548.5,9.37738]
[1748627191262,0.78467,2548.7,2548.6,0.78465]
[1748627191568,0.85455857,2548.9,2548.8,0.78461]
[1748627191958,0.06993857,2548.9,2548.5,8.5927]
[1748627192158,0.78467,2548.7,2548.6,0.78466]
[1748627192470,0.06993857,2548.9,2548.5,8.5927]
[1748627192967,0.78467,2548.7,2548.6,0.78466]
[1748627193874,0.06993857,2548.9,2548.5,7.2938]
[1748627194175,0.06993857,2548.9,2548.8,3.2078]
[1748627194778,1.96084,2549.8,2549.0,1.96139]
[1748627194975,0.78445,2549.4,2549.3,0.78442]
[1748627195275,0.78449,2549.2,2549.1,7.29968281]
[1748627196278,0.78449,2549.2,2549.1,4.09188281]
[1748627196479,0.78449,2549.2,2549.1,0.00588281]
[1748627196877,0.78449,2549.2,2549.1,0.79040281]
[1748627198283,0.78449,2549.2,2549.1,0.00588281]
[1748627198580,2.10439,2549.2,2549.1,0.79040281]
[1748627198771,0.6657,2549.3,2549.2,0.78449]
[1748627198975,1.45016,2549.3,2549.2,0.78449]
[1748627199172,0.78449,2549.2,2549.1,0.79039281]
[1748627199480,2.02059,2549.2,2549.1,0.00588281]
[1748627200178,2.02059,2549.2,2549.1,0.79040281]
[1748627200877,2.02059,2549.2,2549.1,0.00588281]
[1748627201181,0.78449,2549.2,2549.1,0.79040281]
[1748627201781,0.78449,2549.2,2549.1,0.00588281]
[1748627202078,5.78449,2549.2,2549.1,0.00588281]
[1748627202278,0.78464,2548.7,2548.6,4.085]
[1748627202883,1.3105,2548.8,2548.1,3.2078]
[1748627203089,3.99257,2548.3,2547.9,4.085]
[1748627203394,3.99257,2548.3,2548.2,5.4351924]
[1748627203581,3.99257,2548.3,2548.2,0.00588281]
[1748627204183,5.30307,2548.3,2548.2,0.00588281]
[1748627204378,0.78486,2548.0,2547.9,4.085]
[1748627205280,1.2657,2548.1,2547.9,4.085]
[1748627205482,1.2657,2548.1,2548.0,0.78486]
[1748627206083,0.78486,2548.0,2547.9,4.86988]
[1748627206485,3.2078,2548.3,2548.2,0.7848]
[1748627206791,0.78485,2548.1,2548.0,0.78485]
[1748627208188,2.05051,2548.2,2548.1,0.78483]
[1748627208692,0.78486,2548.1,2548.0,0.78485]
[1748627209081,0.78486,2548.0,2547.9,4.86987]
[1748627210389,0.78486,2548.0,2547.9,4.085]
[1748627210587,0.78489,2548.0,2547.7,42.75868281]
[1748627210791,0.78489,2548.0,2547.9,0.78488]
[1748627210991,2.05052,2548.2,2548.1,0.78483]
[1748627211883,1.4479,2548.6,2548.5,0.78471]
[1748627212697,0.78474,2548.5,2548.4,0.78472]
[1748627212892,0.6632,2548.6,2548.3,8.6439]
[1748627212893,0.78474,2548.4,2548.3,8.6439]
[1748627213192,0.78482,2548.2,2548.1,0.78479]
[1748627213397,0.78486,2548.1,2548.0,0.78484]
[1748627213589,0.78483,2548.1,2548.0,0.78485]
[1748627213790,0.78483,2548.1,2548.0,4.085]
[1748627214797,0.78483,2548.1,2548.0,4.86986]
[1748627214992,0.78486,2548.0,2547.9,1.3511]
[1748627215201,0.78486,2548.0,2547.9,4.085]
[1748627215501,0.85479857,2548.0,2547.9,4.085]
[1748627215796,0.78492,2547.8,2547.7,0.00588281]
[1748627216388,2.03382,2547.8,2547.7,0.00588281]
[1748627217791,0.6406,2547.9,2547.8,0.78492]
[1748627217994,0.06993857,2548.0,2547.9,0.78489]
[1748627218299,2.17079857,2548.0,2547.9,0.78489]
[1748627218596,0.06993857,2548.0,2547.9,0.78489]
[1748627218799,0.85479857,2548.0,2547.9,4.87089]
[1748627218998,0.85479857,2548.0,2547.9,4.086]
[1748627219196,2.17079857,2548.0,2547.9,4.086]
[1748627219798,2.36699857,2548.0,2547.9,4.086]
[1748627220300,0.26613857,2548.0,2547.9,9.87089]
[1748627220691,0.26613857,2548.0,2547.9,11.17289]
[1748627221099,1.05099857,2548.0,2547.9,1.302]
[1748627221399,0.26613857,2548.0,2547.9,5.388]
[1748627221599,1.05099857,2548.0,2547.9,5.388]
[1748627221991,0.78489,2547.9,2547.8,4.086]
[1748627222301,2.71149,2547.9,2547.8,4.086]
[1748627223399,0.78504,2547.4,2547.3,3.2078]
[1748627223595,3.88888,2547.9,2547.3,3.2078]
[1748627223792,0.78502,2547.5,2547.4,0.78503]
[1748627223993,0.78502,2547.5,2547.4,2.05863]
[1748627224398,0.78502,2547.5,2547.4,1.2736]
[1748627224796,0.78504,2547.4,2547.3,3.2078]
[1748627225291,0.78504,2547.5,2547.4,0.78504]
[1748627225496,0.85497857,2547.5,2547.4,0.78504]
[1748627225697,0.06993857,2547.5,2547.4,0.78504]
[1748627225901,0.06993857,2547.5,2547.4,2.06434]
[1748627226195,0.85494857,2547.5,2547.4,1.2793]
[1748627226495,0.06993857,2547.5,2547.2,0.00588281]
[1748627226700,0.78508,2547.3,2547.2,0.00588281]
[1748627227097,2.04078,2547.3,2547.2,0.00588281]
[1748627227900,8.21841,2547.3,2546.6,3.2078]
[1748627228088,0.78523,2546.8,2546.7,4.086]
[1748627228292,0.78532,2546.6,2546.4,0.78534]
[1748627228493,0.78529,2546.6,2546.5,4.086]
[1748627229594,0.78535,2546.4,2546.3,0.00588281]
[1748627230193,1.46385,2546.4,2546.3,0.00588281]
[1748627230698,0.6785,2546.4,2546.3,0.00588281]
[1748627230893,0.78529,2546.6,2546.3,0.00588281]
[1748627231198,0.78532,2546.5,2546.4,4.087]
[1748627231400,0.7853,2546.6,2546.4,4.087]
[1748627231590,0.78528,2546.7,2546.5,0.78531]
[1748627231791,1.9621,2546.8,2546.4,5.3464]
[1748627231994,0.78532,2546.5,2546.4,4.087]
[1748627232495,0.78532,2546.5,2546.3,0.00588281]
[1748627232496,0.78535,2546.4,2546.3,0.00588281]
[1748627232699,2.05125,2546.4,2546.3,0.00588281]
[1748627233003,0.78554,2545.8,2545.7,4.087]
[1748627233703,1.96396,2545.7,2545.4,4.087]
[1748627234001,0.78563,2545.5,2545.4,4.087]
[1748627235303,1.2659,2545.7,2545.4,4.087]
[1748627235496,3.21368281,2545.8,2545.7,0.78557]
[1748627235697,0.78563,2545.5,2545.4,1.2314]
[1748627235897,0.78566,2545.4,2545.3,4.09388281]
[1748627236603,0.78566,2545.4,2545.3,0.00588281]
[1748627236797,0.78566,2545.4,2545.3,4.09388281]
[1748627237204,1.8691,2545.7,2545.3,4.87954281]
[1748627237505,0.78566,2545.4,2545.3,4.09388281]
[1748627237904,0.78566,2545.4,2545.3,4.87957281]
[1748627238101,0.78566,2545.4,2545.3,4.09388281]
[1748627238405,3.99346,2545.4,2545.3,0.00588281]
[1748627239806,1.2955,2545.5,2545.3,0.00588281]
[1748627239999,0.78566,2545.4,2545.3,0.79157281]
[1748627240404,0.78566,2545.4,2545.3,0.00588281]
[1748627240607,3.99346,2545.4,2545.3,0.00588281]
[1748627240805,0.78566,2545.4,2545.3,0.00588281]
[1748627241411,7.13876,2545.4,2545.3,0.00588281]
[1748627242501,0.78585,2544.8,2544.7,4.146]
[1748627242804,0.78594,2544.5,2544.4,7.3538]
[1748627242998,3.2078,2545.0,2544.4,7.3538]
[1748627243304,2.13893,2544.9,2544.8,0.78585]
[1748627243504,2.13893,2544.9,2544.7,0.78586]
[1748627243699,1.3531,2544.9,2544.6,0.00396082]
[1748627243905,1.3531,2544.9,2544.8,0.78585]
[1748627244098,2.13894,2544.9,2544.7,0.78585]
[1748627244501,0.78585,2544.8,2544.7,0.78585]
[1748627244707,0.78588,2544.7,2544.6,0.00396082]
[1748627244998,2.14718,2544.7,2544.6,0.00396082]
[1748627245203,7.14718,2544.7,2544.6,0.00396082]
[1748627245605,2.14718,2544.7,2544.6,0.00396082]
[1748627246308,7.14718,2544.7,2544.6,0.00396082]
[1748627246801,1.96496,2544.4,2543.9,0.78612]
[1748627247008,0.78609,2544.0,2543.9,0.78611]
[1748627247207,0.78612,2543.9,2543.8,5.31264]
[1748627247509,0.78612,2544.0,2543.8,5.31263]
[1748627247706,0.78625,2543.5,2543.4,7.3558]
[1748627247915,0.78623,2543.6,2543.4,4.93427]
[1748627248204,4.5569,2543.9,2543.0,3.2078]
[1748627248501,1.3491,2543.5,2543.1,0.07864417]
[1748627248708,3.2078,2543.6,2543.4,0.78625]
[1748627248901,3.2078,2543.6,2543.1,1.39734417]
[1748627249507,3.2078,2543.6,2543.3,0.78628]
[1748627249703,3.99404,2543.6,2543.4,2.10496]
[1748627249904,1.5456,2543.8,2543.4,1.3187]
[1748627250108,0.1965,2543.8,2543.7,0.78618]
[1748627250311,0.1965,2543.8,2543.5,4.149]
[1748627250515,0.98268,2543.8,2543.6,2.06191]
[1748627250701,0.1965,2543.8,2543.5,4.149]
[1748627251009,0.1965,2543.8,2543.7,0.78618]
[1748627251209,0.98268,2543.8,2543.6,2.0619]
[1748627251513,0.98268,2543.8,2543.7,0.78618]
[1748627251708,3.4043,2543.8,2543.4,0.6442]
[1748627251905,0.7863,2543.4,2543.2,5.4247]
[1748627252105,0.78631,2543.3,2543.2,6.21104]
[1748627252304,0.78631,2543.3,2543.2,5.4247]
[1748627252507,1.2421,2543.7,2543.2,5.4247]
[1748627252711,1.2421,2543.7,2543.3,0.78629]
[1748627252911,1.2421,2543.7,2543.4,0.78627]
[1748627253114,1.2421,2543.7,2543.3,1.2757]
[1748627253412,0.78628,2543.4,2543.3,1.2757]
[1748627253612,1.2421,2543.7,2543.3,2.06199]
[1748627253807,1.2421,2543.7,2543.1,3.28644417]
[1748627253808,0.78634,2543.2,2543.1,0.07864417]
[1748627254410,0.78634,2543.2,2543.1,0.86501417]
[1748627254609,1.96562,2543.5,2543.1,0.07864417]
[1748627254811,0.78634,2543.2,2543.1,1.37154417]
[1748627255206,0.78634,2543.2,2543.1,0.07864417]
[1748627256006,2.02084,2543.2,2543.1,0.07864417]
[1748627256514,0.78634,2543.2,2543.1,0.07864417]
[1748627256813,0.78634,2543.2,2543.1,1.40154417]
[1748627257207,1.2856,2543.6,2543.1,1.40154417]
[1748627257411,0.26643857,2543.8,2543.4,1.9657]
[1748627257714,0.26643857,2543.8,2543.5,5.4729]
[1748627257910,0.78634,2543.2,2543.1,0.07864417]
[1748627258308,3.2078,2543.3,2543.1,0.07864417]
[1748627258509,5.1101,2543.5,2543.1,0.07864417]
[1748627258714,0.78629,2543.4,2543.2,1.3229]
[1748627259019,0.6396,2543.7,2543.2,1.3229]
[1748627259313,0.78634,2543.2,2543.1,0.07864417]
[1748627260214,1.3043,2543.4,2543.1,2.16691417]
[1748627260410,0.78634,2543.2,2543.1,1.38054417]
[1748627260604,4.5121,2543.4,2543.1,0.07864417]
[1748627260913,3.99414,2543.2,2543.1,0.07864417]
[1748627261513,8.99414,2543.2,2543.1,4.17e-06]
[1748627261818,13.14414,2543.2,2543.1,4.17e-06]
[1748627262611,12.3578,2543.2,2542.3,4.151]
[1748627262812,0.78659,2542.4,2542.3,4.151]
[1748627263318,0.00589449,2542.6,2542.2,4.151]
[1748627263515,0.00589449,2542.6,2542.5,0.78656]
[1748627263919,0.79241449,2542.6,2542.5,0.78656]
[1748627264520,0.79241449,2542.6,2542.2,4.151]
[1748627264521,0.78662,2542.3,2542.2,4.151]
[1748627265426,0.78661,2542.4,2542.2,4.151]
[1748627265719,0.78662,2542.3,2542.2,4.151]
[1748627265920,0.7866,2542.4,2542.2,4.151]
[1748627266415,0.00589449,2542.6,2542.3,3.2078]
[1748627266610,0.79243449,2542.6,2542.3,3.2078]
[1748627266813,0.00589449,2542.6,2542.5,0.78656]
[1748627267214,0.00589449,2542.6,2542.5,5.78656]
[1748627267615,0.78647,2542.8,2542.7,0.78646]
[1748627267820,0.7864,2543.1,2543.0,0.78639]
[1748627268023,0.78637,2543.2,2543.1,0.78636]
[1748627268417,0.78639,2543.1,2543.0,0.78639]
[1748627268614,0.78633,2543.3,2543.2,0.78631]
[1748627268811,0.00589449,2543.3,2542.9,3.2078]
[1748627269017,0.26054408,2543.8,2543.7,0.78618]
[1748627269220,0.26054408,2543.8,2543.7,8.14498]
[1748627269420,0.26054408,2543.8,2543.7,13.14498]
[1748627270219,0.19060551,2543.8,2543.7,13.14498]
[1748627270522,0.00589449,2544.0,2543.9,0.78612]
[1748627271316,8.21369449,2544.0,2541.6,3.2078]
[1748627271521,1.96689,2541.9,2540.9,3.99483]
[1748627271712,39.31643,2543.3,2540.7,4.936]
[1748627271713,3.2078,2541.2,2540.7,4.936]
[1748627272120,3.99477,2541.2,2540.7,4.936]
[1748627272421,0.1967,2541.1,2540.7,0.00589449]
[1748627272622,0.1967,2541.1,2540.8,4.936]
[1748627272821,0.1967,2541.1,2540.9,0.78703]
[1748627273824,0.78703,2541.0,2540.8,4.936]
[1748627274026,0.1967,2541.1,2540.8,5.72307]
[1748627274223,0.1967,2541.1,2540.9,0.78704]
[1748627274423,0.1967,2541.1,2540.8,4.936]
[1748627274621,0.1967,2541.1,2540.9,0.78704]
[1748627274821,0.1967,2541.1,2541.0,4.937]
[1748627275121,0.1967,2541.1,2540.7,0.00589449]
[1748627275323,3.2078,2540.8,2540.0,3.2078]
[1748627275521,1.2696,2540.7,2540.0,3.2078]
[1748627275815,0.78725,2540.3,2540.0,3.2078]
[1748627276014,3.2078,2540.5,2540.0,3.2078]
[1748627276227,3.2078,2540.5,2540.0,8.1448]
[1748627276421,3.4045,2541.1,2540.3,3.2078]
[1748627276627,3.2078,2540.8,2540.3,3.2078]
[1748627276924,3.2078,2540.8,2540.4,0.78719]
[1748627277125,0.78718,2540.5,2540.3,0.78722]
[1748627277331,0.78709,2540.8,2540.5,0.78715]
[1748627277628,0.1967,2541.1,2540.8,0.78707]
[1748627277828,0.1967,2541.1,2540.4,4.937]
[1748627278037,0.98369,2541.1,2540.9,0.78703]
[1748627278329,0.1967,2541.1,2540.9,4.938]
[1748627278520,0.1967,2541.1,2541.0,0.78702]
[1748627278918,0.00589449,2541.2,2541.1,0.78699]
[1748627279323,0.00589449,2541.2,2541.1,8.99479]
[1748627282027,0.78668,2542.1,2541.4,1.9672]
[1748627282332,0.06993857,2542.4,2542.3,0.78661]
[1748627283433,0.06993857,2542.4,2540.5,9.77]
[1748627283434,0.78703,2541.0,2540.8,3.2078]
[1748627283629,3.2078,2541.2,2540.8,3.99487]
[1748627283933,0.78705,2540.9,2540.8,8.93287]
[1748627284133,0.78705,2540.9,2540.8,8.1458]
[1748627284326,3.99485,2540.9,2540.8,4.938]
[1748627284529,0.78709,2540.8,2540.6,0.80572405]
[1748627284737,3.2078,2540.9,2540.6,0.01861405]
[1748627284929,3.2078,2540.9,2540.8,0.78708]
[1748627285635,2.10303,2541.0,2540.7,1.3324]
[1748627285833,1.316,2541.0,2540.6,0.01861405]
[1748627286034,0.7871,2540.8,2540.7,5.7251]
[1748627286237,3.99486,2540.9,2540.7,5.72509]
[1748627286439,0.78708,2540.8,2540.7,5.72509]
[1748627286632,0.06993857,2540.9,2540.8,0.78708]
[1748627287032,0.06993857,2540.9,2540.8,2.12358]
[1748627288540,0.06993857,2540.9,2540.8,12.06258]
[1748627288740,0.06993857,2540.9,2540.8,7.06258]
[1748627290344,0.06993857,2540.9,2540.8,5.72608]
[1748627290538,0.85698857,2540.9,2540.8,4.939]
[1748627290744,0.06993857,2540.9,2540.8,0.78708]
[1748627290941,0.78708,2540.8,2540.7,4.939]
[1748627291144,5.25328,2540.8,2540.7,4.939]
[1748627292236,4.4662,2540.8,2540.7,5.72611]
[1748627292442,0.06993857,2540.9,2540.8,0.78708]
[1748627292642,0.78708,2540.8,2540.7,5.72609]
[1748627292944,0.85699857,2540.9,2540.8,0.78708]
[1748627293750,0.06993857,2540.9,2540.8,0.78708]
[1748627294245,1.41163857,2540.9,2540.8,0.78708]
[1748627294544,0.06993857,2540.9,2540.8,0.78708]
[1748627295140,0.85698857,2540.9,2540.8,0.78708]
[1748627295544,0.85698857,2540.9,2540.8,5.72708]
[1748627295848,0.06993857,2540.9,2540.8,5.72708]
[1748627296141,0.85698857,2540.9,2540.6,0.01861405]
[1748627296342,1.3012,2540.8,2540.7,5.72708]
[1748627296742,1.3012,2540.8,2540.7,4.94]
[1748627296941,5.29608,2540.8,2540.7,4.94]
[1748627297347,5.29608,2540.8,2540.7,5.72711]
[1748627297746,1.3012,2540.8,2540.7,5.72711]
[1748627297946,0.06993857,2540.9,2540.8,0.78708]
[1748627298151,0.06993857,2540.9,2540.8,2.04768]
[1748627301052,0.06993857,2540.9,2540.8,5.25548]
[1748627301649,0.78705,2541.0,2540.8,4.963]
[1748627301951,2.11912,2541.0,2540.9,0.78703]
[1748627302256,0.78707,2540.9,2540.8,5.75005]
[1748627302549,3.29976,2540.9,2540.6,0.01861405]
[1748627302754,0.78708,2540.8,2540.7,5.75011]
[1748627302955,1.3321,2540.8,2540.7,5.75011]
[1748627303157,3.99483,2541.0,2540.7,4.963]
[1748627303455,0.78711,2540.7,2540.6,0.01861405]
[1748627303649,0.78711,2540.7,2540.6,4.98161405]
[1748627304556,0.78711,2540.7,2540.6,5.76875405]
[1748627306053,1.3262,2540.8,2540.7,0.78711]
[1748627306250,6.3262,2540.8,2539.7,3.2078]
[1748627306454,3.2078,2539.8,2539.6,6.24564832]
[1748627306654,1.3262,2539.7,2539.6,0.78745]
[1748627306951,0.78745,2539.6,2539.5,0.78746]
[1748627307149,1.3262,2539.7,2539.4,4.4989]
[1748627307150,2.72915,2539.7,2539.4,3.2078]
[1748627307356,2.72914,2539.7,2539.6,0.78745]
[1748627307959,0.78746,2539.6,2539.5,0.78747]
[1748627308156,1.2922,2539.6,2539.4,3.2078]
[1748627308352,1.2922,2539.6,2539.5,4.963]
[1748627308552,1.2922,2539.6,2539.5,5.75048]
[1748627308759,0.6155,2539.7,2539.6,0.78745]
[1748627308965,0.00590621,2539.8,2539.7,0.78742]
[1748627309254,3.90102,2540.3,2539.8,0.78736]
[1748627309453,3.90102,2540.3,2539.7,3.2078]
[1748627309454,0.78734,2540.0,2539.7,3.2078]
[1748627309655,0.78731,2540.1,2540.0,0.78733]
[1748627309852,1.9329,2540.3,2539.7,3.27783]
[1748627310051,0.78728,2540.2,2539.7,3.28373621]
[1748627310249,0.78731,2540.1,2539.8,1.3093]
[1748627310455,0.78728,2540.2,2540.1,0.78727]
[1748627310655,2.07948,2540.2,2540.1,5.75027]
[1748627310961,0.00590621,2540.3,2540.2,0.78726]
[1748627311150,0.00590621,2540.3,2540.2,2.08066]
[1748627313562,0.00590621,2540.3,2540.2,10.28846]
[1748627314262,0.00590621,2540.3,2540.2,15.25146]
[1748627314458,0.00590621,2540.3,2540.2,10.25146]
[1748627315261,0.00590621,2540.3,2540.2,15.25146]
[1748627315463,0.00590621,2540.3,2540.2,15.76076]
[1748627315760,3.8753,2541.0,2540.9,0.78705]
[1748627315761,4.66232,2541.0,2540.9,0.78705]
[1748627315960,4.66232,2541.0,2540.9,5.75005]
[1748627316165,5.96702,2541.0,2540.9,5.75005]
[1748627316360,5.96702,2541.0,2540.9,4.963]
[1748627316960,5.18,2541.0,2540.9,5.75005]
[1748627317164,0.00590621,2541.2,2541.1,0.78699]
[1748627317357,0.79287621,2541.2,2541.1,0.78699]
[1748627318158,0.00590621,2541.2,2541.1,0.78699]
[1748627320463,0.79285621,2541.2,2541.1,0.78699]
[1748627320659,0.78699,2541.1,2541.0,2.14049]
[1748627321065,0.79288621,2541.2,2541.1,0.78699]
[1748627322166,0.79286621,2541.2,2541.1,0.78699]
[1748627322965,0.78705,2541.0,2540.9,0.78701]
[1748627323164,0.78705,2541.0,2540.9,5.75001]
[1748627326272,1.3174,2541.1,2541.0,0.78702]
[1748627326466,0.00590621,2541.2,2541.1,0.78699]
[1748627326663,0.79286621,2541.2,2541.1,0.78699]
[1748627328369,0.00590621,2541.2,2541.1,0.78699]
[1748627328771,0.79286621,2541.2,2541.1,0.78699]
[1748627329770,0.00590621,2541.2,2541.1,0.78699]
[1748627330567,0.79286621,2541.2,2541.1,0.78699]
[1748627330772,0.79286621,2541.2,2541.1,5.74899]
[1748627330974,0.00590621,2541.2,2541.1,5.81892857]
[1748627332771,0.00590621,2541.2,2541.1,5.71992857]
[1748627332970,0.00590621,2541.2,2541.1,4.93293857]
[1748627333170,0.00590621,2541.2,2541.1,5.71992857]
[1748627333369,1.35610621,2541.2,2541.1,5.71992857]
[1748627335477,0.00590621,2541.2,2541.1,8.92772857]
[1748627335676,0.6237,2541.4,2541.3,0.78692]
[1748627338573,1.9811,2541.4,2541.3,0.78692]
[1748627339971,0.27133,2541.5,2541.4,0.78689]
[1748627340573,1.62873,2541.5,2541.4,0.78689]
[1748627346383,0.00590621,2541.6,2541.5,0.78687]
[1748627347175,3.2078,2542.8,2541.7,1.96702]
[1748627347377,1.2941,2542.5,2541.9,0.78675]
[1748627347685,1.2941,2542.5,2542.4,0.7866]
[1748627348183,5.28846,2542.5,2542.4,4.862]
[1748627348382,9.5019,2542.5,2542.1,0.78665]
[1748627348579,9.5019,2542.5,2541.8,5.17475]
[1748627348580,0.78666,2542.3,2542.2,0.78664]
[1748627349383,6.9666,2542.3,2541.9,4.861]
[1748627349585,3.99454,2542.0,2541.9,0.78673]
[1748627349779,0.78674,2542.0,2541.9,0.78673]
[1748627350084,0.78683,2541.7,2541.3,3.24653]
[1748627350386,0.78683,2541.7,2541.6,0.78681]
[1748627350578,1.96681,2542.0,2541.4,4.861]
[1748627350579,3.2078,2542.1,2541.4,4.861]
[1748627350781,0.78675,2542.0,2541.9,0.78674]
[1748627351176,1.96692,2541.9,2541.2,3.2078]
[1748627351383,3.99459,2541.8,2541.7,0.78681]
[1748627351690,3.9946,2541.8,2541.7,0.78681]
[1748627352485,3.2078,2541.8,2541.7,0.78681]
[1748627352674,3.99458,2541.8,2541.7,5.64781]
[1748627352879,3.2078,2541.8,2541.7,5.64781]
[1748627353787,3.2078,2542.1,2541.8,0.78674]
[1748627354084,0.78675,2542.0,2541.7,6.82803]
[1748627354284,3.99451,2542.1,2542.0,0.78672]
[1748627354480,0.6517,2542.2,2542.1,0.78669]
[1748627354882,1.43836,2542.2,2542.1,0.78669]
[1748627355286,0.6517,2542.2,2542.1,0.78669]
[1748627355476,3.2078,2542.6,2542.3,0.78663]
[1748627355680,3.2078,2542.6,2541.8,6.48364]
[1748627355681,0.78656,2542.5,2542.4,4.861]
[1748627355881,0.78656,2542.5,2542.4,5.6476]
[1748627356088,0.78656,2542.5,2542.4,4.861]
[1748627356489,0.78663,2542.3,2542.2,0.78664]
[1748627356789,0.78663,2542.3,2542.2,5.64764]
[1748627356985,0.78661,2542.4,2542.3,0.78659]
[1748627357390,0.78663,2542.4,2542.3,0.78661]
[1748627357686,0.7866,2542.5,2542.4,0.78657]
[1748627357882,0.7866,2542.5,2542.2,0.78665]
[1748627357883,0.78663,2542.3,2542.2,0.78665]
[1748627358083,0.78663,2542.3,2542.2,5.64765]
[1748627358492,0.78662,2542.4,2542.3,0.7866]
[1748627359193,0.78663,2542.3,2542.2,5.64765]
[1748627359388,0.78662,2542.4,2542.3,0.78659]
[1748627359788,0.78663,2542.3,2542.2,0.78663]
[1748627359988,0.78663,2542.3,2542.2,5.64763]
[1748627360689,0.78662,2542.4,2542.3,0.78659]
[1748627360886,0.78663,2542.3,2542.2,5.64763]
[1748627361191,0.78669,2542.2,2542.1,0.78667]
[1748627361392,0.78669,2542.2,2542.1,5.64767]
[1748627362090,3.2078,2542.3,2542.2,0.78666]
[1748627362595,3.99443,2542.3,2542.2,0.78666]
[1748627362793,3.2078,2542.3,2542.2,0.78666]